[Event "58th BRA-chW 2019"]
[Site "Rio de Janeiro"]
[Date "2019.02.16"]
[Round "1.1"]
[White "Alboredo, Julia"]
[Black "Reis, Virginia Lagrange M"]
[Result "1-0"]
[ECO "B38"]
[WhiteElo "2212"]
[BlackElo "1738"]
[Annotator "NA"]
[PlyCount "47"]
[EventDate "2019.02.16"]
[EventType "k.o."]
[EventCountry "BRA"]
[SourceTitle "playchess.com"]
[Source "ChessBase"]
[SourceQuality "1"]
[TimeControl "5400+30"]

1. e4 {[%emt 0:00:00]} c5 {[%emt 0:00:00]} 2. Nf3 {[%emt 0:00:00]} Nc6 {[%emt 0:00:19]} 3. d4 {[%emt 0:00:10]} cxd4 {[%emt 0:00:13]} 4. Nxd4 {[%emt 0:00:14]} g6 {[%emt 0:00:26]} 5. c4 {[%emt 0:00:27]} Bg7 {[%emt 0:00:25]} 6. Be3 {[%emt 0:00:19]} d6 {[%emt 0:00:46]} 7. Nc3 {[%emt 0:00:42]} Nf6 {[%emt 0:01:59]} 8. Be2 {[%emt 0:00:14]} O-O {[%emt 0:01:45]} 9. O-O {[%emt 0:00:23]} Bd7 {[%emt 0:03:11]} 10. h3 {[%emt 0:00:41]} Nxd4 {[%emt 0:04:49]} 11. Bxd4 {[%emt 0:00:13]} Bc6 {[%emt 0:00:26]} 12. Qc2 {[%emt 0:00:32]} a5 {[%emt 0:03:57]} 13. Rad1 {[%emt 0:00:40]} Nd7 {[%emt 0:04:12]} 14. Bxg7 {[%emt 0:00:36]} Kxg7 {[%emt 0:00:10]} 15. Bg4 {[%emt 0:00:09]} Qe8 {[%emt 0:14:14]} 16. Bxd7 {[%emt 0:08:24]} Bxd7 {[%emt 0:01:16]} 17. Nd5 {[%emt 0:00:12]} Qd8 {[%emt 0:08:19]} 18. Qc3+ {[%emt 0:04:26]} Kg8 {[%emt 0:04:16]} 19. e5 {[%emt 0:06:24]} Bf5 {[%emt 0:13:52]} 20. Rfe1 {[%emt 0:09:21]} f6 {[%emt 0:12:24]} 21. exd6 {[%emt 0:01:18]} exd6 {[%emt 0:01:42]} 22. Re7 {[%emt 0:02:01]} Kh8 {[%emt 0:07:40]} 23. Rde1 {[%emt 0:00:52]} Bd7 {[%emt 0:15:09]} 24. R7e4 1-0

[Event "58th BRA-chW 2019"]
[Site "Rio de Janeiro"]
[Date "2019.02.16"]
[Round "1.1"]
[White "Ichimura G. Barbosa, Larissa Y."]
[Black "Hubner, Jessica Trindade"]
[Result "1-0"]
[ECO "B13"]
[WhiteElo "1983"]
[BlackElo "1790"]
[Annotator "NA"]
[PlyCount "101"]
[EventDate "2019.02.16"]
[EventType "k.o."]
[EventCountry "BRA"]
[SourceTitle "playchess.com"]
[Source "ChessBase"]
[SourceQuality "1"]
[TimeControl "5400+30"]

1. e4 {[%emt 0:00:00]} c6 {[%emt 0:00:00]} 2. d4 {[%emt 0:00:07]} d5 {[%emt 0:00:00]} 3. exd5 {[%emt 0:00:37]} cxd5 {[%emt 0:00:06]} 4. c4 {[%emt 0:00:51]} Nc6 {[%emt 0:02:11]} 5. Nf3 {[%emt 0:01:30]} Bg4 {[%emt 0:00:28]} 6. Nc3 {[%emt 0:03:16]} Nf6 {[%emt 0:08:17]} 7. cxd5 {[%emt 0:01:40]} Nxd5 {[%emt 0:04:03]} 8. Qb3 {[%emt 0:01:08]} Bxf3 {[%emt 0:11:00]} 9. gxf3 {[%emt 0:00:19]} Nb6 {[%emt 0:00:31]} 10. d5 {[%emt 0:09:46]} Nd4 {[%emt 0:15:48]} 11. Qd1 {[%emt 0:04:08]} e5 {[%emt 0:10:56]} 12. dxe6 {[%emt 0:17:55]} fxe6 {[%emt 0:03:18]} 13. Be3 {[%emt 0:04:07]} Nc6 {[%emt 0:02:52]} 14. Qb3 {[%emt 0:00:55]} Qf6 {[%emt 0:04:18]} 15. Bh3 {[%emt 0:06:55]} Qxf3 {[%emt 0:17:58]} 16. Qxe6+ {[%emt 0:04:10]} Be7 {[%emt 0:00:01]} 17. Rg1 {[%emt 0:05:03]} Qf6 {[%emt 0:00:49]} 18. O-O-O {[%emt 0:12:40]} Qxe6 {[%emt 0:03:11]} 19. Bxe6 {[%emt 0:00:08]} Nd8 {[%emt 0:00:14]} 20. Bh3 {[%emt 0:01:28]} O-O {[%emt 0:00:55]} 21. Bxb6 {[%emt 0:03:58]} axb6 {[%emt 0:00:11]} 22. Rd7 {[%emt 0:00:24]} Bf6 {[%emt 0:03:56]} 23. Nd5 {[%emt 0:04:31]} Kh8 {[%emt 0:02:22]} 24. Nxf6 {[%emt 0:04:02]} Rxf6 {[%emt 0:00:07]} 25. Rgxg7 {[%emt 0:04:11]} Rxf2 {[%emt 0:00:53]} 26. Rxh7+ {[%emt 0:03:25]} Kg8 {[%emt 0:00:09]} 27. Rdg7+ {[%emt 0:00:13]} Kf8 {[%emt 0:00:15]} 28. Rc7 {[%emt 0:00:11]} Kg8 {[%emt 0:01:05]} 29. Rcg7+ {[%emt 0:05:22]} Kf8 {[%emt 0:00:12]} 30. a3 {[%emt 0:01:14]} Rxh2 {[%emt 0:00:29]} 31. Rg2 {[%emt 0:00:34]} Rxg2 {[%emt 0:01:25]} 32. Bxg2 {[%emt 0:00:02]} Rb8 {[%emt 0:01:10]} 33. Bd5 {[%emt 0:00:33]} Ke8 {[%emt 0:02:01]} 34. Kc2 {[%emt 0:00:20]} Rc8+ {[%emt 0:01:04]} 35. Kb3 {[%emt 0:00:07]} Rc5 {[%emt 0:01:08]} 36. Bxb7 {[%emt 0:00:37]} Nc6 {[%emt 0:02:36]} 37. Bxc6+ {[%emt 0:01:05]} Rxc6 {[%emt 0:00:12]} 38. Kb4 {[%emt 0:00:12]} Kd8 {[%emt 0:00:27]} 39. Kb5 {[%emt 0:00:24]} Rf6 {[%emt 0:01:49]} 40. Rb7 {[%emt 0:00:34]} Rf2 {[%emt 0:00:43]} 41. b4 {[%emt 0:00:06]} Ra2 {[%emt 0:00:25]} 42. a4 {[%emt 0:00:07]} Rb2 {[%emt 0:00:15]} 43. Rxb6 {[%emt 0:00:06]} Kc7 {[%emt 0:00:10]} 44. Ka6 {[%emt 0:00:13]} Rd2 {[%emt 0:00:45]} 45. b5 {[%emt 0:00:41]} Rd4 {[%emt 0:00:16]} 46. a5 {[%emt 0:00:10]} Rd8 {[%emt 0:00:28]} 47. Ka7 {[%emt 0:00:49]} Rf8 {[%emt 0:00:58]} 48. Rh6 {[%emt 0:01:11]} Rf7 {[%emt 0:00:26]} 49. b6+ {[%emt 0:00:19]} Kc8+ {[%emt 0:00:37]} 50. Ka8 {[%emt 0:00:11]} Rf8 {[%emt 0:00:49]} 51. Rh7 {[%emt 0:00:12]} 1-0

[Event "58th BRA-chW 2019"]
[Site "Rio de Janeiro"]
[Date "2019.02.16"]
[Round "1.1"]
[White "Medeiros, Thauane Ferreira"]
[Black "Mello, Amanda Carolina De"]
[Result "1-0"]
[ECO "D11"]
[WhiteElo "1947"]
[BlackElo "1808"]
[Annotator "NA"]
[PlyCount "83"]
[EventDate "2019.02.16"]
[EventType "k.o."]
[EventCountry "BRA"]
[SourceTitle "playchess.com"]
[Source "ChessBase"]
[SourceQuality "1"]
[TimeControl "5400+30"]

1. d4 {[%emt 0:08:10]} d5 {[%emt 0:00:00]} 2. c4 {[%emt 0:00:37]} c6 {[%emt 0:00:00]} 3. Nf3 {[%emt 0:00:05]} Nf6 {[%emt 0:00:05]} 4. e3 {[%emt 0:00:05]} Bg4 {[%emt 0:05:13]} 5. Nc3 {[%emt 0:00:54]} e6 {[%emt 0:00:35]} 6. Qb3 {[%emt 0:06:51]} Qb6 {[%emt 0:02:09]} 7. Ne5 {[%emt 0:00:53]} Bf5 {[%emt 0:05:05]} 8. Qxb6 {[%emt 0:13:17]} axb6 {[%emt 0:00:18]} 9. Bd2 {[%emt 0:00:41]} Nbd7 {[%emt 0:04:04]} 10. Nxd7 {[%emt 0:01:56]} Nxd7 {[%emt 0:01:40]} 11. cxd5 {[%emt 0:00:09]} exd5 {[%emt 0:00:32]} 12. a4 {[%emt 0:15:20]} Bd6 {[%emt 0:11:12]} 13. Be2 {[%emt 0:04:14]} O-O {[%emt 0:01:23]} 14. O-O {[%emt 0:00:29]} Rfe8 {[%emt 0:06:23]} 15. Rfc1 {[%emt 0:07:03]} Bg6 {[%emt 0:07:31]} 16. Nd1 {[%emt 0:12:26]} f5 {[%emt 0:10:06]} 17. Bd3 {[%emt 0:07:47]} Nf6 {[%emt 0:05:38]} 18. b4 {[%emt 0:04:14]} Ne4 {[%emt 0:06:04]} 19. Be1 {[%emt 0:02:40]} Bc7 {[%emt 0:07:42]} 20. b5 {[%emt 0:03:30]} c5 {[%emt 0:03:19]} 21. Bxe4 {[%emt 0:00:24]} dxe4 {[%emt 0:02:09]} 22. dxc5 {[%emt 0:00:15]} Be5 {[%emt 0:00:51]} 23. Bc3 {[%emt 0:01:46]} bxc5 {[%emt 0:00:56]} 24. a5 {[%emt 0:00:57]} Bh5 {[%emt 0:06:42]} 25. Bxe5 {[%emt 0:01:37]} Rxe5 {[%emt 0:00:46]} 26. Nc3 {[%emt 0:00:45]} Rd8 {[%emt 0:07:21]} 27. a6 {[%emt 0:00:45]} bxa6 {[%emt 0:00:47]} 28. Rxa6 {[%emt 0:00:52]} Rb8 {[%emt 0:01:01]} 29. Rb1 {[%emt 0:00:27]} c4 {[%emt 0:01:30]} 30. Rc6 {[%emt 0:01:00]} Bf7 {[%emt 0:01:01]} 31. Rc7 {[%emt 0:01:47]} Ree8 {[%emt 0:01:06]} 32. h4 {[%emt 0:01:50]} Red8 {[%emt 0:00:30]} 33. b6 {[%emt 0:00:20]} Rd6 {[%emt 0:00:44]} 34. b7 {[%emt 0:00:15]} Be6 {[%emt 0:01:19]} 35. Ne2 {[%emt 0:01:09]} Bd7 {[%emt 0:00:36]} 36. Nd4 {[%emt 0:00:28]} c3 {[%emt 0:01:02]} 37. Rxc3 {[%emt 0:00:13]} Ra6 {[%emt 0:00:16]} 38. Rc7 {[%emt 0:00:38]} Be6 {[%emt 0:00:24]} 39. Nxe6 {[%emt 0:00:08]} Rxe6 {[%emt 0:00:03]} 40. Rc8+ {[%emt 0:00:04]} Re8 {[%emt 0:00:04]} 41. Rxe8+ {[%emt 0:00:03]} Rxe8 {[%emt 0:00:04]} 42. b8=Q {[%emt 0:00:08]} 1-0

[Event "58th BRA-chW 2019"]
[Site "Rio de Janeiro"]
[Date "2019.02.16"]
[Round "1.1"]
[White "Tamarozi, Isabelle"]
[Black "Kanzler, Karina Daniela Ferr"]
[Result "0-1"]
[ECO "B00"]
[WhiteElo "1937"]
[BlackElo "1913"]
[Annotator "NA"]
[PlyCount "86"]
[EventDate "2019.02.16"]
[EventType "k.o."]
[EventCountry "BRA"]
[SourceTitle "playchess.com"]
[Source "ChessBase"]
[SourceQuality "1"]
[TimeControl "5400+30"]

1. e4 {[%emt 0:00:00]} e6 {[%emt 0:00:00]} 2. d4 {[%emt 0:00:00]} b6 {[%emt 0:00:00]} 3. Nc3 {[%emt 0:01:38]} Bb7 {[%emt 0:00:07]} 4. Be3 {[%emt 0:01:51]} Nf6 {[%emt 0:01:17]} 5. Bd3 {[%emt 0:06:53]} Bb4 {[%emt 0:00:53]} 6. f3 {[%emt 0:02:55]} Bxc3+ {[%emt 0:03:54]} 7. bxc3 {[%emt 0:00:09]} d6 {[%emt 0:00:23]} 8. h4 {[%emt 0:08:38]} Nbd7 {[%emt 0:01:36]} 9. Nh3 {[%emt 0:03:11]} h6 {[%emt 0:02:58]} 10. Qe2 {[%emt 0:02:55]} Nh5 {[%emt 0:02:44]} 11. Qf2 {[%emt 0:05:37]} Qe7 {[%emt 0:03:00]} 12. g4 {[%emt 0:04:21]} Nhf6 {[%emt 0:00:26]} 13. Kd2 {[%emt 0:03:31]} a6 {[%emt 0:06:15]} 14. a4 {[%emt 0:02:07]} e5 {[%emt 0:01:39]} 15. Qg2 {[%emt 0:05:12]} a5 {[%emt 0:04:47]} 16. g5 {[%emt 0:06:07]} hxg5 {[%emt 0:03:12]} 17. hxg5 {[%emt 0:03:15]} Nh5 {[%emt 0:05:52]} 18. d5 {[%emt 0:08:07]} g6 {[%emt 0:06:47]} 19. f4 {[%emt 0:09:18]} O-O-O {[%emt 0:00:40]} 20. Raf1 {[%emt 0:06:03]} exf4 {[%emt 0:04:38]} 21. Nxf4 {[%emt 0:00:50]} Nxf4 {[%emt 0:00:26]} 22. Rxf4 {[%emt 0:02:25]} Rxh1 {[%emt 0:04:50]} 23. Qxh1 {[%emt 0:00:07]} Ne5 {[%emt 0:00:26]} 24. Be2 {[%emt 0:04:11]} Kb8 {[%emt 0:01:05]} 25. Rf6 {[%emt 0:05:20]} Re8 {[%emt 0:01:15]} 26. Qh7 {[%emt 0:03:19]} Nc4+ {[%emt 0:08:25]} 27. Bxc4 {[%emt 0:01:25]} Qxe4 {[%emt 0:00:06]} 28. Bf2 {[%emt 0:02:32]} Qxc4 {[%emt 0:02:51]} 29. Rxf7 {[%emt 0:00:45]} Qxd5+ {[%emt 0:00:49]} 30. Kc1 {[%emt 0:00:24]} Qh1+ {[%emt 0:03:41]} 31. Qxh1 {[%emt 0:00:36]} Bxh1 {[%emt 0:00:07]} 32. Kd2 {[%emt 0:01:10]} Be4 {[%emt 0:00:12]} 33. Rf6 {[%emt 0:01:00]} Bf5 {[%emt 0:00:18]} 34. Bd4 {[%emt 0:00:32]} Re4 {[%emt 0:00:25]} 35. Rf8+ {[%emt 0:00:20]} Kb7 {[%emt 0:00:07]} 36. Rf7 {[%emt 0:00:20]} Rg4 {[%emt 0:00:09]} 37. Bf6 {[%emt 0:00:40]} Rxa4 {[%emt 0:01:13]} 38. Bd8 {[%emt 0:00:33]} Rc4 {[%emt 0:00:23]} 39. Be7 {[%emt 0:00:16]} Rc6 {[%emt 0:00:45]} 40. Kc1 {[%emt 0:00:49]} Rxc3 {[%emt 0:00:18]} 41. Bxd6 {[%emt 0:00:19]} Rxc2+ {[%emt 0:00:29]} 42. Kd1 {[%emt 0:00:05]} Rc4 {[%emt 0:00:16]} 43. Be5 {[%emt 0:00:33]} a4 {[%emt 0:00:40]} 0-1

[Event "58th BRA-chW 2019"]
[Site "Rio de Janeiro"]
[Date "2019.02.16"]
[Round "1.1"]
[White "Ribeiro, Regina"]
[Black "Guimaraes, Artemis Pamela"]
[Result "0-1"]
[ECO "E07"]
[WhiteElo "1876"]
[BlackElo "1939"]
[Annotator "NA"]
[PlyCount "70"]
[EventDate "2019.02.16"]
[EventType "k.o."]
[EventCountry "BRA"]
[SourceTitle "playchess.com"]
[Source "ChessBase"]
[SourceQuality "1"]
[TimeControl "5400+30"]

1. c4 {[%emt 0:00:02]} Nf6 {[%emt 0:00:00]} 2. g3 {[%emt 0:00:22]} e6 {[%emt 0:00:00]} 3. Bg2 {[%emt 0:00:28]} d5 {[%emt 0:00:04]} 4. Nf3 {[%emt 0:00:47]} Be7 {[%emt 0:00:54]} 5. O-O {[%emt 0:01:28]} O-O {[%emt 0:00:46]} 6. d4 {[%emt 0:00:51]} c6 {[%emt 0:00:48]} 7. Nc3 {[%emt 0:02:06]} Nbd7 {[%emt 0:03:50]} 8. Qd3 {[%emt 0:08:10]} b6 {[%emt 0:07:44]} 9. cxd5 {[%emt 0:07:58]} cxd5 {[%emt 0:01:53]} 10. Bf4 {[%emt 0:08:06]} a5 {[%emt 0:04:59]} 11. Ne5 {[%emt 0:18:06]} Nxe5 {[%emt 0:05:17]} 12. Bxe5 {[%emt 0:02:24]} Ba6 {[%emt 0:02:25]} 13. Qf3 {[%emt 0:05:06]} Rc8 {[%emt 0:05:44]} 14. Bf4 {[%emt 0:09:20]} Qd7 {[%emt 0:41:06]} 15. a4 {[%emt 0:03:31]} Rc4 {[%emt 0:04:37]} 16. Rfd1 {[%emt 0:04:53]} Rfc8 {[%emt 0:02:01]} 17. e3 {[%emt 0:05:43]} Rb4 {[%emt 0:02:12]} 18. Rd2 {[%emt 0:04:07]} Rb3 {[%emt 0:04:18]} 19. Qd1 {[%emt 0:02:57]} Bc4 {[%emt 0:00:16]} 20. g4 {[%emt 0:03:53]} Bb4 {[%emt 0:00:43]} 21. Rc2 {[%emt 0:02:48]} Bxc3 {[%emt 0:04:11]} 22. Rxc3 {[%emt 0:01:58]} Rxb2 {[%emt 0:02:28]} 23. g5 {[%emt 0:01:49]} Ne8 {[%emt 0:01:19]} 24. e4 {[%emt 0:02:11]} Rd8 {[%emt 0:02:28]} 25. Qh5 {[%emt 0:01:33]} Rb3 {[%emt 0:00:51]} 26. Rxb3 {[%emt 0:00:57]} Bxb3 {[%emt 0:00:07]} 27. Ra3 {[%emt 0:00:25]} Bc4 {[%emt 0:01:37]} 28. Rh3 {[%emt 0:00:17]} Qxa4 {[%emt 0:00:18]} 29. Qxh7+ {[%emt 0:00:30]} Kf8 {[%emt 0:00:04]} 30. Bf3 {[%emt 0:00:57]} Qa1+ {[%emt 0:00:14]} 31. Kg2 {[%emt 0:00:10]} Bf1+ {[%emt 0:00:25]} 32. Kg3 {[%emt 0:00:03]} Bxh3 {[%emt 0:00:15]} 33. Kxh3 {[%emt 0:00:40]} Qc3 {[%emt 0:00:40]} 34. Be3 {[%emt 0:00:25]} e5 {[%emt 0:00:53]} 35. Qf5 {[%emt 0:01:53]} exd4 {[%emt 0:00:54]} 0-1

[Event "58th BRA-chW 2019"]
[Site "Rio de Janeiro"]
[Date "2019.02.16"]
[Round "1.1"]
[White "Melo, Gabrieli De"]
[Black "Gazola, Vanessa Ramos"]
[Result "1-0"]
[ECO "A18"]
[WhiteElo "1792"]
[BlackElo "1951"]
[Annotator "NA"]
[PlyCount "119"]
[EventDate "2019.02.16"]
[EventType "k.o."]
[EventCountry "BRA"]
[SourceTitle "playchess.com"]
[Source "ChessBase"]
[SourceQuality "1"]
[TimeControl "5400+30"]

1. c4 {[%emt 0:00:00]} Nf6 {[%emt 0:00:00]} 2. Nc3 {[%emt 0:00:09]} e6 {[%emt 0:00:25]} 3. e4 {[%emt 0:00:43]} d5 {[%emt 0:00:50]} 4. e5 {[%emt 0:01:13]} d4 {[%emt 0:00:12]} 5. exf6 {[%emt 0:00:14]} dxc3 {[%emt 0:00:07]} 6. bxc3 {[%emt 0:00:15]} Qxf6 {[%emt 0:00:12]} 7. d4 {[%emt 0:00:56]} e5 {[%emt 0:00:09]} 8. Nf3 {[%emt 0:03:09]} exd4 {[%emt 0:04:55]} 9. cxd4 {[%emt 0:01:45]} Bb4+ {[%emt 0:00:11]} 10. Bd2 {[%emt 0:00:59]} Bxd2+ {[%emt 0:00:28]} 11. Qxd2 {[%emt 0:00:09]} O-O {[%emt 0:00:08]} 12. Be2 {[%emt 0:01:30]} c5 {[%emt 0:06:17]} 13. O-O {[%emt 0:03:02]} cxd4 {[%emt 0:00:31]} 14. Qxd4 {[%emt 0:00:50]} Qe7 {[%emt 0:00:51]} 15. Bd3 {[%emt 0:04:47]} Nc6 {[%emt 0:03:12]} 16. Qf4 {[%emt 0:03:38]} Nb4 {[%emt 0:14:22]} 17. Qe4 {[%emt 0:12:45]} Qxe4 {[%emt 0:00:14]} 18. Bxe4 {[%emt 0:00:05]} Be6 {[%emt 0:06:31]} 19. a3 {[%emt 0:03:13]} Nc6 {[%emt 0:00:45]} 20. Bd5 {[%emt 0:02:51]} Na5 {[%emt 0:13:05]} 21. Bxe6 {[%emt 0:10:00]} fxe6 {[%emt 0:00:06]} 22. Ne5 {[%emt 0:02:42]} Rfc8 {[%emt 0:06:21]} 23. Rab1 {[%emt 0:06:03]} b6 {[%emt 0:02:38]} 24. Rfd1 {[%emt 0:03:23]} Nxc4 {[%emt 0:02:50]} 25. Nxc4 {[%emt 0:01:02]} Rxc4 {[%emt 0:00:05]} 26. Rd7 {[%emt 0:00:25]} Rac8 {[%emt 0:00:09]} 27. g3 {[%emt 0:00:52]} R8c7 {[%emt 0:02:02]} 28. Rbd1 {[%emt 0:03:52]} Rxd7 {[%emt 0:04:35]} 29. Rxd7 {[%emt 0:00:12]} Ra4 {[%emt 0:00:14]} 30. Rd3 {[%emt 0:00:49]} Kf7 {[%emt 0:00:15]} 31. Kf1 {[%emt 0:03:30]} Ke7 {[%emt 0:00:25]} 32. Ke1 {[%emt 0:00:18]} Ra5 {[%emt 0:00:14]} 33. Ke2 {[%emt 0:01:17]} Re5+ {[%emt 0:00:49]} 34. Kf3 {[%emt 0:01:19]} Rd5 {[%emt 0:02:03]} 35. Rc3 {[%emt 0:01:45]} Kd7 {[%emt 0:01:29]} 36. Ke4 {[%emt 0:01:18]} Rc5 {[%emt 0:04:18]} 37. Rf3 {[%emt 0:01:58]} Ke7 {[%emt 0:02:47]} 38. Rd3 {[%emt 0:02:44]} g5 {[%emt 0:00:31]} 39. f4 {[%emt 0:04:10]} g4 {[%emt 0:00:46]} 40. h3 {[%emt 0:01:47]} gxh3 {[%emt 0:00:38]} 41. g4 {[%emt 0:00:06]} h2 {[%emt 0:03:23]} 42. Rh3 {[%emt 0:00:08]} Rc2 {[%emt 0:00:17]} 43. Rxh7+ {[%emt 0:00:30]} Kf6 {[%emt 0:01:28]} 44. Rh3 {[%emt 0:03:25]} b5 {[%emt 0:00:54]} 45. g5+ {[%emt 0:00:34]} Kg6 {[%emt 0:02:45]} 46. Rh6+ {[%emt 0:00:16]} Kg7 {[%emt 0:00:24]} 47. Ke5 {[%emt 0:01:07]} Re2+ {[%emt 0:00:47]} 48. Kd4 {[%emt 0:02:01]} a6 {[%emt 0:00:20]} 49. Kc5 {[%emt 0:01:05]} Ra2 {[%emt 0:03:27]} 50. Kd6 {[%emt 0:02:09]} Rxa3 {[%emt 0:01:41]} 51. Rxh2 {[%emt 0:00:19]} b4 {[%emt 0:03:56]} 52. Kxe6 {[%emt 0:01:23]} Re3+ {[%emt 0:01:49]} 53. Kd5 {[%emt 0:06:50]} b3 {[%emt 0:00:20]} 54. f5 {[%emt 0:00:40]} a5 {[%emt 0:00:27]} 55. Kc4 {[%emt 0:00:22]} a4 {[%emt 0:00:45]} 56. Kb4 {[%emt 0:00:21]} Re4+ {[%emt 0:00:21]} 57. Ka3 {[%emt 0:00:07]} Rc4 {[%emt 0:00:17]} 58. Rf2 {[%emt 0:02:10]} Rc2 {[%emt 0:02:28]} 59. Rxc2 {[%emt 0:00:39]} bxc2 {[%emt 0:00:08]} 60. Kb2 {[%emt 0:00:05]} 1-0

[Event "58th BRA-chW 2019"]
[Site "Rio de Janeiro"]
[Date "2019.02.16"]
[Round "1.1"]
[White "Vieira, Julia"]
[Black "Librelato, Kathie Goulart"]
[Result "0-1"]
[ECO "A16"]
[WhiteElo "1768"]
[BlackElo "2172"]
[Annotator "NA"]
[PlyCount "68"]
[EventDate "2019.02.16"]
[EventType "k.o."]
[EventCountry "BRA"]
[SourceTitle "playchess.com"]
[Source "ChessBase"]
[SourceQuality "1"]
[TimeControl "5400+30"]

1. c4 {[%emt 0:00:00]} Nf6 {[%emt 0:00:00]} 2. Nc3 {[%emt 0:00:11]} g6 {[%emt 0:00:00]} 3. g3 {[%emt 0:00:13]} Bg7 {[%emt 0:00:08]} 4. Bg2 {[%emt 0:00:05]} O-O {[%emt 0:00:15]} 5. Nf3 {[%emt 0:00:08]} d6 {[%emt 0:00:52]} 6. O-O {[%emt 0:00:33]} Nc6 {[%emt 0:00:12]} 7. d3 {[%emt 0:00:38]} Nh5 {[%emt 0:00:40]} 8. a3 {[%emt 0:01:44]} f5 {[%emt 0:02:19]} 9. e3 {[%emt 0:00:50]} e5 {[%emt 0:01:33]} 10. Qc2 {[%emt 0:08:52]} f4 {[%emt 0:25:04]} 11. Nd5 {[%emt 0:15:04]} g5 {[%emt 0:22:59]} 12. gxf4 {[%emt 0:01:50]} gxf4 {[%emt 0:00:39]} 13. Rb1 {[%emt 0:04:08]} Bg4 {[%emt 0:03:38]} 14. h3 {[%emt 0:04:43]} Bxf3 {[%emt 0:08:04]} 15. Bxf3 {[%emt 0:02:56]} Qh4 {[%emt 0:09:17]} 16. Bg4 {[%emt 0:04:45]} fxe3 {[%emt 0:02:27]} 17. Bxe3 {[%emt 0:01:51]} Nf4 {[%emt 0:11:41]} 18. Bxf4 {[%emt 0:05:45]} exf4 {[%emt 0:00:02]} 19. f3 {[%emt 0:01:05]} h5 {[%emt 0:04:27]} 20. Be6+ {[%emt 0:01:43]} Kh8 {[%emt 0:00:01]} 21. Qh2 {[%emt 0:05:19]} Nd4 {[%emt 0:01:36]} 22. Bd7 {[%emt 0:01:01]} Rad8 {[%emt 0:02:00]} 23. Ba4 {[%emt 0:00:21]} Rf5 {[%emt 0:01:19]} 24. Kh1 {[%emt 0:03:51]} Be5 {[%emt 0:01:32]} 25. Qf2 {[%emt 0:04:19]} Qxh3+ {[%emt 0:00:02]} 26. Qh2 {[%emt 0:00:03]} Qxh2+ {[%emt 0:00:12]} 27. Kxh2 {[%emt 0:00:07]} Rg5 {[%emt 0:00:04]} 28. Nxc7 {[%emt 0:04:22]} Rdg8 {[%emt 0:00:18]} 29. Rf2 {[%emt 0:01:33]} Rg3 {[%emt 0:02:07]} 30. Rbf1 {[%emt 0:00:22]} Nf5 {[%emt 0:00:21]} 31. Re2 {[%emt 0:07:10]} Bd4 {[%emt 0:01:03]} 32. Nd5 {[%emt 0:03:04]} Bg1+ {[%emt 0:00:30]} 33. Rxg1 {[%emt 0:00:26]} Rxg1 {[%emt 0:00:03]} 34. Nxf4 {[%emt 0:01:10]} Ng3 {[%emt 0:00:48]} 0-1